{"text_format":"3","workbook":"xlsx","n_sheets":4,"sheets":["Készpénzösszesítés","Elköltött készpénz","Havi összesítés","Diagramadatok"],"not_rendered":{"charts":2,"defined_names":7,"pivot_tables":2},"read":"whole","date_system":"1900"}

{"sheet":"Készpénzösszesítés","index":0,"n_rows":22,"n_cols":7,"rows_kept":22,"merged":[[0,1,1,5],[2,1,2,2],[2,3,2,4],[3,1,18,1],[19,1,20,1],[21,1,22,1]]}
[null,"Személyes pénzkövető"]
[{"$nulls":6},"Elköltött készpénz >"]
[{"$nulls":3},"Készpénzösszesítés"]
[null,"Oszlopdiagram a rendelkezésre álló készpénz százalékos értékének megjelenítéséhez ebben a cellában.",null,"Számla","Kezdeti készpénz","Összes kiadás","Fennmaradó készpénz"]
[{"$nulls":3},"Folyószámla",{"v":3000,"d":"3,000.00"},{"$f":"SUMIF(ElköltöttKészpénz[Számla],\"=\" &KészpénzÖsszesítésTáblázat[[#This Row],[Számla]],ElköltöttKészpénz[Összeg])","v":{"v":496,"d":"496.00"}},{"$f":"KészpénzÖsszesítésTáblázat[[#This Row],[Kezdeti készpénz]]-KészpénzÖsszesítésTáblázat[[#This Row],[Összes kiadás]]","v":{"v":2504,"d":"2,504.00"}}]
[{"$nulls":3},"Megtakarítás",{"v":500,"d":"500.00"},{"$f":"SUMIF(ElköltöttKészpénz[Számla],\"=\" &KészpénzÖsszesítésTáblázat[[#This Row],[Számla]],ElköltöttKészpénz[Összeg])","v":{"v":450,"d":"450.00"}},{"$f":"KészpénzÖsszesítésTáblázat[[#This Row],[Kezdeti készpénz]]-KészpénzÖsszesítésTáblázat[[#This Row],[Összes kiadás]]","v":{"v":50,"d":"50.00"}}]
[{"$nulls":3},"Egyéb",{"v":200,"d":"200.00"},{"$f":"SUMIF(ElköltöttKészpénz[Számla],\"=\" &KészpénzÖsszesítésTáblázat[[#This Row],[Számla]],ElköltöttKészpénz[Összeg])","v":{"v":30,"d":"30.00"}},{"$f":"KészpénzÖsszesítésTáblázat[[#This Row],[Kezdeti készpénz]]-KészpénzÖsszesítésTáblázat[[#This Row],[Összes kiadás]]","v":{"v":170,"d":"170.00"}}]
[{"$nulls":3}," Összeg ",{"$f":"SUBTOTAL(109,KészpénzÖsszesítésTáblázat[Kezdeti készpénz])","v":{"v":3700,"d":"3700.00"}},{"$f":"SUBTOTAL(109,KészpénzÖsszesítésTáblázat[Összes kiadás])","v":{"v":976,"d":"976.00"}},{"$f":"SUBTOTAL(109,KészpénzÖsszesítésTáblázat[Fennmaradó készpénz])","v":{"v":2724,"d":"2724.00"}}]
{"$rows_empty":11}
[null,"Készpénz\nHátravan:"]
[]
[null,{"$f":"KészpénzÖsszesítésTáblázat[[#Totals],[Fennmaradó készpénz]]/KészpénzÖsszesítésTáblázat[[#Totals],[Kezdeti készpénz]]","v":{"v":0.7362162162162162,"d":"74%"}}]

{"sheet":"Elköltött készpénz","index":1,"n_rows":16,"n_cols":6,"rows_kept":16,"merged":[[0,1,1,3],[2,1,2,2],[3,5,6,6],[7,5,14,6]]}
[null,"Személyes pénzkövető"]
[{"$nulls":4},"< Készpénzösszesítés","Havi összesítés >"]
[null,"Elköltött készpénz"]
[null,"Dátum","Leírás","Összeg","Számla","Az ebben a cellában található a táblázat adatait a számlatípus szerint szűrő szeletelő."]
[null,{"$f":"TODAY()+105","v":"2023-03-20"},"Kivétel automatából",{"v":40,"d":"40.00"},"Folyószámla"]
[null,{"$f":"TODAY()+106","v":"2023-03-21"},"Ebéd",{"v":5,"d":"5.00"},"Folyószámla"]
[null,{"$f":"TODAY()+107","v":"2023-03-22"},"Autó költségei",{"v":230,"d":"230.00"},"Megtakarítás"]
[null,{"$f":"TODAY()+135","v":"2023-04-19"},"Villanyszámla",{"v":70,"d":"70.00"},"Folyószámla","Ebben a cellában szerepel a tablázat adatait a leírás szerint szűrő szeletelő."]
[null,{"$f":"TODAY()+139","v":"2023-04-23"},"Vacsora",{"v":53,"d":"53.00"},"Folyószámla"]
[null,{"$f":"TODAY()+162","v":"2023-05-16"},"Készpénzkivétel",{"v":100,"d":"100.00"},"Megtakarítás"]
[null,{"$f":"TODAY()+167","v":"2023-05-21"},"Autó költségei",{"v":230,"d":"230.00"},"Folyószámla"]
[null,{"$f":"TODAY()+198","v":"2023-06-21"},"Villanyszámla",{"v":70,"d":"70.00"},"Megtakarítás"]
[null,{"$f":"TODAY()+212","v":"2023-07-05"},"Kivétel automatából",{"v":30,"d":"30.00"},"Folyószámla"]
[null,{"$f":"TODAY()+225","v":"2023-07-18"},"Kivétel automatából",{"v":50,"d":"50.00"},"Megtakarítás"]
[null,{"$f":"TODAY()+232","v":"2023-07-25"},"Kivétel automatából",{"v":30,"d":"30.00"},"Egyéb"]
[null,{"$f":"TODAY()+283","v":"2023-09-14"},"Villanyszámla",{"v":68,"d":"68.00"},"Folyószámla"]

{"sheet":"Havi összesítés","index":2,"n_rows":37,"n_cols":6,"rows_kept":37,"merged":[[0,1,1,4],[2,1,2,5],[3,1,3,6],[4,1,16,4],[4,5,8,6],[9,5,16,6],[17,1,17,5]]}
[null,"Havi összesítés"]
[{"$nulls":5},"< Elköltött készpénz"]
[null,"Az adatok frissítéséhez először jelölje ki a kimutatásdiagramot.  A helyi menü megjelenítéséhez kattintson egyszer a jobb gombra.  A diagram frissítéséhez válassza a frissítés vagy Az összes frissítése lehetőséget."]
[null,"Számlaösszesítés"]
[null,"A folyószámlát, valamint a megtakarítási és egyéb számlákat az egyes hónapokban összehasonlító oszlopdiagram ebben a cellában.",{"$nulls":3},"Ebben a cellában szerepel az adatokat a számlatípus szerint szűrő szeletelő."]
[]
[]
[]
[]
[{"$nulls":5},"Ebben a cellában szerepel az adatokat a leírás szerint szűrő szeletelő."]
{"$rows_empty":7}
[null,"Kiadásösszesítés"]
[null,"Részletek "]
[null,null,"Folyószámla","Megtakarítás","Egyéb","Grand Total"]
[null,"Mar",{"v":45,"d":"45.00"},{"v":230,"d":"230.00"},null,{"v":275,"d":"275.00"}]
[null,"Autó költségei",null,{"v":230,"d":"230.00"},null,{"v":230,"d":"230.00"}]
[null,"Ebéd",{"v":5,"d":"5.00"},null,null,{"v":5,"d":"5.00"}]
[null,"Kivétel automatából",{"v":40,"d":"40.00"},null,null,{"v":40,"d":"40.00"}]
[null,"Apr",{"v":123,"d":"123.00"},null,null,{"v":123,"d":"123.00"}]
[null,"Vacsora",{"v":53,"d":"53.00"},null,null,{"v":53,"d":"53.00"}]
[null,"Villanyszámla",{"v":70,"d":"70.00"},null,null,{"v":70,"d":"70.00"}]
[null,"May",{"v":230,"d":"230.00"},{"v":100,"d":"100.00"},null,{"v":330,"d":"330.00"}]
[null,"Autó költségei",{"v":230,"d":"230.00"},null,null,{"v":230,"d":"230.00"}]
[null,"Készpénzkivétel",null,{"v":100,"d":"100.00"},null,{"v":100,"d":"100.00"}]
[null,"Jun",null,{"v":70,"d":"70.00"},null,{"v":70,"d":"70.00"}]
[null,"Villanyszámla",null,{"v":70,"d":"70.00"},null,{"v":70,"d":"70.00"}]
[null,"Jul",{"v":30,"d":"30.00"},{"v":50,"d":"50.00"},{"v":30,"d":"30.00"},{"v":110,"d":"110.00"}]
[null,"Kivétel automatából",{"v":30,"d":"30.00"},{"v":50,"d":"50.00"},{"v":30,"d":"30.00"},{"v":110,"d":"110.00"}]
[null,"Sep",{"v":68,"d":"68.00"},null,null,{"v":68,"d":"68.00"}]
[null,"Villanyszámla",{"v":68,"d":"68.00"},null,null,{"v":68,"d":"68.00"}]
[null,"Grand Total",{"v":496,"d":"496.00"},{"v":450,"d":"450.00"},{"v":30,"d":"30.00"},{"v":976,"d":"976.00"}]

{"sheet":"Diagramadatok","index":3,"n_rows":11,"n_cols":6,"rows_kept":11,"merged":[[0,1,0,2]]}
[null,"Kimutatásdiagram adatai"]
[null,"A kimutatás a Havi összesítés lapon látható Számlaösszesítés kimutatásdiagram forrása."]
[null,"Összeg / Összeg","Column Labels"]
[null,"Row Labels","Folyószámla","Megtakarítás","Egyéb","Grand Total"]
[null,"Mar",{"v":45,"d":"45.00"},{"v":230,"d":"230.00"},null,{"v":275,"d":"275.00"}]
[null,"Apr",{"v":123,"d":"123.00"},null,null,{"v":123,"d":"123.00"}]
[null,"May",{"v":230,"d":"230.00"},{"v":100,"d":"100.00"},null,{"v":330,"d":"330.00"}]
[null,"Jun",null,{"v":70,"d":"70.00"},null,{"v":70,"d":"70.00"}]
[null,"Jul",{"v":30,"d":"30.00"},{"v":50,"d":"50.00"},{"v":30,"d":"30.00"},{"v":110,"d":"110.00"}]
[null,"Sep",{"v":68,"d":"68.00"},null,null,{"v":68,"d":"68.00"}]
[null,"Grand Total",{"v":496,"d":"496.00"},{"v":450,"d":"450.00"},{"v":30,"d":"30.00"},{"v":976,"d":"976.00"}]